[Event "8th Montevideo Open 2025"]
[Site "Montevideo"]
[Date "2025.02.01"]
[Round "2.13"]
[White "Volpe, Agustin"]
[Black "Bauza, Alejandro"]
[Result "0-1"]
[Annotator "TA"]
[ECO "E11"]
[WhiteElo "1873"]
[BlackElo "2116"]
[PlyCount "96"]
[EventDate "2025.02.01"]
[EventType "swiss"]
[EventCountry "URU"]
[SourceTitle "playchess.com"]
[Source "ChessBase"]
[SourceQuality "1"]
[TimeControl "5400+30"]

{[%evp 16,96,23,0,0,-3,1,0,0,0,20,0,0,-14,-14,-20,-14,-23,-9,-21,-8,-15,-5,0,0,-54,-57,-62,-62,-88,-81,-80,-78,-73,-15,-22,-15,-19,-20,-22,-27,-108,-126,-109,-108,-270,-260,-256,-245,-440,-477,-471,-455,-426,-426,-447,-438,-354,-243,-1320,-1443,-1214,-1364,-1166,-1008,-29979,-29980,-29980,-29981,-29981,-29982,-29982,-29983,-29983,-29984,-29984,-29985,-29985,-29986,-29986,-29987,-29987,-29988]} 1. d4 {[%emt 0:02:28]} Nf6 {[%emt 0:00:53]} 2. c4 {[%emt 0:00:12]} e6 {[%emt 0:00:25]} 3. Nf3 {[%emt 0:00:08]} Bb4+ {[%emt 0:01:40]} 4. Nbd2 {[%emt 0:00:08]} d6 {[%emt 0:00:27]} 5. a3 {[%emt 0:00:39]} Bxd2+ {[%emt 0:00:28]} 6. Bxd2 {[%emt 0:00:09]} b6 {[%emt 0:01:38]} 7. Bg5 {[%emt 0:02:43]} Bb7 {[%emt 0:00:24]} 8. e3 {[%emt 0:00:17]} Nbd7 {[%emt 0:00:31]} 9. Be2 {[%emt 0:01:29]} h6 {[%emt 0:04:08] E11: Bogo-Indian.} 10. Bxf6 {[%emt 0:06:24]} Qxf6 {[%emt 0:04:31]} 11. O-O {[%emt 0:00:58] Not much happening anymore} O-O {[%emt 0:00:46] The position is equal.} 12. Nd2 {[%emt 0:01:31]} a5 $146 {[%emt 0:06:06]} (12... e5 13. Bf3 Bxf3 14. Nxf3 Rad8 15. b4 Qe7 16. Qa4 a5 17. bxa5 Ra8 18. a6 Ra7 {½-½ Alivodic,D (1834)-Kreutzmann,D (1975) EU-ch U14 26th 2016 (7)}) 13. Bf3 {[%emt 0:00:32]} Bxf3 {[%emt 0:02:56]} 14. Qxf3 {[%emt 0:00:11]} Qxf3 {[%emt 0:00:06]} 15. Nxf3 {[%emt 0:00:02]} a4 {[%emt 0:00:09]} 16. h3 {[%emt 0:09:22]} f5 {[%emt 0:01:36]} 17. Rfe1 {[%emt 0:01:14]} Ra5 {[%emt 0:12:05]} 18. Rac1 {[%emt 0:01:53]} g5 {[%emt 0:01:29]} 19. Nd2 {[%emt 0:01:54]} Kg7 {[%emt 0:00:30]} 20. e4 {[%emt 0:00:30]} ({White should try} 20. Nb1 $11) 20... f4 $15 {[%emt 0:00:30]} 21. Nb1 {[%emt 0:00:30]} e5 {[%emt 0:03:05] Black is more active.} 22. Rcd1 {[%emt 0:11:04]} exd4 {[%emt 0:00:30]} 23. Rxd4 {[%emt 0:00:30]} Ne5 {[%emt 0:00:30]} 24. Nc3 {[%emt 0:00:30]} Rc5 {[%emt 0:00:30]} (24... f3 $17 {Strongly threatening ...fxg2.} 25. g4 Rf4) 25. Nxa4 $11 {[%emt 0:00:30]} Rxc4 {[%emt 0:00:30]} 26. Rxc4 {[%emt 0:00:30]} Nxc4 {[%emt 0:00:30][%mdl 4096] Endgame KRN-KRN} 27. Rc1 {[%emt 0:00:30]} b5 {[%emt 0:00:30][%cal Og7f6]} 28. b3 {[%emt 0:00:30]} (28. Nc3 $11 {remains equal.} c6 29. Rc2) 28... bxa4 $17 {[%emt 0:00:30]} ({Much weaker is} 28... Nxa3 $6 29. Rxc7+ Rf7 30. Rxf7+ Kxf7 31. Nc3 $11) 29. Rxc4 {[%emt 0:00:30]} axb3 {[%emt 0:00:30]} 30. Rxc7+ {[%emt 0:00:30] KR-KR Now White is beyond hope.} (30. Rb4 $17) 30... Rf7 $19 {[%emt 0:00:30]} 31. Rc1 {[%emt 0:00:30]} Ra7 {[%emt 0:00:30][%cal Og7f6] [#]} 32. Rb1 $2 {[%emt 0:00:30]} (32. Ra1 {was worth a try.}) 32... Rxa3 {[%emt 0:00:30]} 33. Kf1 {[%emt 0:00:30]} Kf6 {[%emt 0:00:30]} 34. Ke2 {[%emt 0:00:30]} Ra2+ {[%emt 0:00:30]} 35. Kf3 {[%emt 0:00:30]} b2 {[%emt 0:00:30] [#]} 36. Ke2 {[%emt 0:00:30]} Ke5 {[%emt 0:00:30]} 37. f3 {[%emt 0:00:30]} (37. Kd3) 37... Kd4 {[%emt 0:00:30] ( -> ...Kc3)} 38. Kd2 {[%emt 0:00:30]} h5 {[%emt 0:00:30]} 39. Kc2 {[%emt 0:00:30]} Ke3 {[%emt 0:00:30]} 40. Rd1 {[%emt 0:00:30]} Ra1 {[%emt 0:00:30] Black mates.} 41. Rd3+ {[%emt 0:00:30]} Ke2 {[%emt 0:00:30]} 42. Rd2+ {[%emt 0:00:30]} Ke1 {[%emt 0:00:30]} 43. Kxb2 {[%emt 0:00:30]} Kxd2 {[%emt 0:00:30]} 44. Kxa1 {[%emt 0:00:30] KP-KP} Ke2 {[%emt 0:00:30]} 45. Kb2 {[%emt 0:00:30]} Kf2 {[%emt 0:00:30]} 46. Kc3 {[%emt 0:00:30]} Kxg2 {[%emt 0:00:30]} 47. Kd4 {[%emt 0:00:30]} Kxf3 {[%emt 0:00:30]} 48. Kd5 {[%emt 0:00:30]} g4 {[%emt 0:00:30] Weighted Error Value: White=0.54/Black=0.04 (flawless)   Loses game:     	White=1     	---        Mistake:       	White=4     	Black=1      Inaccurate:     	White=1     	---        OK:         	White=10    	Black=12     Best:        	White=3     	Black=5} 0-1

[Event "8th Montevideo Open 2025"]
[Site "Montevideo"]
[Date "2025.02.01"]
[Round "2.14"]
[White "Curi, Gabriel"]
[Black "Martinez Tagliafico, Sergio"]
[Result "1/2-1/2"]
[Annotator "TA"]
[ECO "B70"]
[WhiteElo "2115"]
[BlackElo "1831"]
[PlyCount "71"]
[EventDate "2025.02.01"]
[EventType "swiss"]
[EventCountry "URU"]
[SourceTitle "playchess.com"]
[Source "ChessBase"]
[SourceQuality "1"]
[TimeControl "5400+30"]

{[%evp 20,71,20,22,37,14,35,16,56,52,65,76,141,130,158,143,208,193,201,206,183,184,289,291,278,264,393,389,375,361,481,437,414,381,430,415,387,367,472,477,473,477,407,114,108,-99,-102,-106,-98,-98,-109,-106,-48,-48]} 1. e4 {[%emt 0:00:01]} c5 {[%emt 0:18:35]} 2. Nf3 {[%emt 0:00:08]} Nc6 {[%emt 0:00:06]} 3. d4 {[%emt 0:00:20]} cxd4 {[%emt 0:00:06]} 4. Nxd4 {[%emt 0:00:06]} g6 {[%emt 0:00:07]} 5. Ne2 {[%emt 0:00:46]} Bg7 {[%emt 0:01:01]} 6. Nbc3 {[%emt 0:00:07]} Nf6 {[%emt 0:00:27]} 7. g3 {[%emt 0:00:07]} O-O {[%emt 0:01:20]} 8. Bg2 {[%emt 0:00:06]} d6 {[%emt 0:01:32]} 9. O-O {[%emt 1:33:19]} Bd7 {[%emt 0:03:11]} 10. h3 {[%emt 0:00:00]} Rc8 {[%emt 0:00:20]} 11. a4 {[%emt 0:00:00]} b6 {[%emt 0:07:56] B70: Sicilian Dragon: 6 g3 and 6 Be2 (without a later Be3).} 12. Nd5 {[%emt 0:00:00]} Nxd5 {[%emt 0:00:48]} 13. exd5 {[%emt 0:00:00]} Ne5 {[%emt 0:04:56] The position is equal.} 14. Ra2 {[%emt 0:00:00]} Qc7 {[%emt 0:02:02]} 15. b3 {[%emt 0:00:00]} f6 $146 {[%emt 0:06:05]} (15... Bf5 $142) (15... a6 16. Nd4 b5 17. axb5 axb5 18. f4 Ng4 19. hxg4 Qc3 20. Ne2 Qc5+ 21. Kh2 Bxg4 {1-0 Baches Garcia,G (2329)-Roebers,J (2170) Titled Tuesday intern op 10th Nov blitz 2020 (5)}) 16. c4 {[%emt 0:00:00]} a6 {[%emt 0:01:41]} 17. Nd4 {[%emt 0:00:00]} Rb8 {[%emt 0:12:24]} (17... Rfe8 $16 {was necessary.} 18. f4 Nxc4) 18. Re1 {[%emt 0:00:00]} Rfe8 {[%emt 0:01:07]} 19. f4 {[%emt 0:00:00]} Nf7 {[%emt 0:02:39]} 20. Kh2 {[%emt 0:00:00]} b5 {[%emt 0:00:40]} (20... f5 $142 21. Bb2 Nd8) 21. cxb5 $18 {[%emt 0:00:00]} axb5 {[%emt 0:00:07]} 22. a5 {[%emt 0:00:00][%cal Ba4a5,Ba5a6,Ba6a7][%mdl 32]} b4 {[%emt 0:05:52]} (22... Ra8 $142 23. Bd2 Qb8) 23. Be3 {[%emt 0:00:00]} Nh6 {[%emt 0:02:55]} 24. Qd2 {[%emt 0:00:00]} Nf5 {[%emt 0:00:54]} 25. Nxf5 {[%emt 0:00:00]} Bxf5 {[%emt 0:00:07]} 26. a6 {[%emt 0:00:00]} Qc3 {[%emt 0:00:36]} 27. a7 {[%emt 0:00:00]} Ra8 {[%emt 0:02:03]} 28. Rc1 {[%emt 0:00:00]} Qxb3 {[%emt 0:06:24]} 29. Bf1 {[%emt 0:00:00]} (29. Rb2 Qa3 30. Ra2 (30. Rxb4 Rxa7 31. Bxa7 Qxa7 $18) (30. g4 Bd7 $18) 30... Qd3 31. Qxd3 Bxd3 $18) 29... Rec8 {[%emt 0:02:22] Prevents Bc4.} 30. Rxc8+ {[%emt 0:00:00]} (30. Rb2 Qa3 31. Rc6 (31. Qxb4 Qxe3 32. Rxc8+ Bxc8 $11) (31. Rxc8+ Bxc8 32. Rxb4 Rxa7 $18) 31... Rxa7 $16 (31... b3 $2 32. Qc3 $18)) 30... Bxc8 {[%emt 0:00:03]} 31. Rb2 $2 {[%emt 0:00:00] [#]} (31. Bb5 $18 {has better winning chances.}) 31... Qa3 $16 {[%emt 0:04:29]} 32. Qxb4 $2 {[%emt 0:00:00]} (32. Rxb4 $16 {and life is bright. Threatens to win with Rb8.} Rxa7 33. Bxa7 Qxa7 34. h4) 32... Qxe3 $17 {[%emt 0:01:31]} 33. Qb8 {[%emt 0:00:00]} Qxa7 {[%emt 0:01:41]} 34. Qxa7 {[%emt 0:00:00]} Rxa7 {[%emt 0:00:15]} 35. Rb8 {[%emt 0:00:00]} Rc7 {[%emt 0:00:28]} (35... Ra2+ $17 36. Kg1 Kf7 (36... Rc2 37. Ba6 $17) 37. Rxc8 f5) 36. Ba6 {[%emt 0:00:00] Weighted Error Value: White=0.37/Black=0.39  Missed win:     	White=1     	---        Mistake:       	White=1     	Black=5      Inaccurate:     	---       	Black=2      OK:         	White=12    	Black=3      Best:        	White=2     	Black=2} 1/2-1/2

[Event "8th Montevideo Open 2025"]
[Site "Montevideo"]
[Date "2025.02.01"]
[Round "2.15"]
[White "Traverso, Luis"]
[Black "Carvalho, Guillermo"]
[Result "0-1"]
[Annotator "RC"]
[ECO "A57"]
[WhiteElo "1648"]
[BlackElo "2094"]
[PlyCount "56"]
[EventDate "2025.02.01"]
[EventType "swiss"]
[EventCountry "URU"]
[SourceTitle "playchess.com"]
[Source "ChessBase"]
[SourceQuality "1"]
[TimeControl "5400+30"]

1. d4 {[%emt 0:11:09]} c5 {[%emt 0:01:47]} 2. d5 {[%emt 0:00:07]} Nf6 {[%emt 0:00:15]} 3. c4 {[%emt 0:01:51]} b5 {[%emt 0:03:51]} 4. b3 {[%emt 0:01:03]} e6 {[%emt 0:01:09]} 5. dxe6 {[%emt 0:05:07]} fxe6 {[%emt 0:00:09]} 6. e3 {[%emt 0:02:21]} bxc4 {[%emt 0:01:44]} 7. Bxc4 {[%emt 0:00:48]} Bb7 {[%emt 0:01:57]} 8. Nf3 {[%emt 0:00:21]} Be7 {[%emt 0:00:51]} 9. O-O {[%emt 0:02:04]} O-O {[%emt 0:00:09]} 10. Nc3 {[%emt 0:02:24]} d5 {[%emt 0:01:52]} 11. Bd3 {[%emt 0:06:28]} Ne4 {[%emt 0:22:48]} 12. Bb2 {[%emt 0:11:45]} Bf6 {[%emt 0:06:00]} 13. Qc2 {[%emt 0:02:25]} Bxc3 {[%emt 0:02:48]} 14. Bxc3 {[%emt 0:01:42]} Nxc3 {[%emt 0:03:32]} 15. Qxc3 {[%emt 0:09:11]} Rxf3 {[%emt 0:08:41]} 16. Bxh7+ {[%emt 0:15:19]} Kxh7 {[%emt 0:00:13]} 17. Qd3+ {[%emt 0:00:05]} Rf5 {[%emt 0:01:20]} 18. e4 {[%emt 0:00:42]} Rf6 {[%emt 0:03:09]} 19. f4 {[%emt 0:09:26]} Rh6 {[%emt 0:04:50]} 20. Rf3 {[%emt 0:02:37]} Qf6 {[%emt 0:07:11]} 21. e5+ {[%emt 0:00:40]} Qf5 {[%emt 0:00:47]} 22. Qb5 {[%emt 0:13:55]} Qf7 {[%emt 0:04:06]} 23. Raf1 {[%emt 0:00:00]} Ba6 {[%emt 0:00:19]} 24. Qxc5 {[%emt 0:00:00]} Bxf1 {[%emt 0:00:15]} 25. Qc2+ {[%emt 0:00:00]} Qg6 {[%emt 0:00:42]} 26. f5 {[%emt 0:00:00]} Qxg2+ {[%emt 0:00:10]} 27. Qxg2 {[%emt 0:00:00]} Bxg2 {[%emt 0:00:04]} 28. Kxg2 {[%emt 0:00:00]} Nd7 {[%emt 0:01:04]} 0-1

[Event "8th Montevideo Open 2025"]
[Site "Montevideo"]
[Date "2025.02.01"]
[Round "2.16"]
[White "De Lima, Adriano Gaspar"]
[Black "Fauci, Bruno"]
[Result "1-0"]
[Annotator "NA RC"]
[ECO "E81"]
[WhiteElo "2073"]
[BlackElo "1654"]
[PlyCount "51"]
[EventDate "2025.02.01"]
[EventType "swiss"]
[EventCountry "URU"]
[SourceTitle "playchess.com"]
[Source "ChessBase"]
[SourceQuality "1"]
[TimeControl "5400+30"]

1. d4 {[%emt 0:02:12]} Nf6 {[%emt 0:00:08]} 2. c4 {[%emt 0:01:34]} g6 {[%emt 0:00:53]} 3. Nc3 {[%emt 0:01:43]} Bg7 {[%emt 0:00:16]} 4. e4 {[%emt 0:01:12]} d6 {[%emt 0:00:06]} 5. f3 {[%emt 0:00:26]} Na6 {[%emt 0:02:23]} 6. Be3 {[%emt 0:01:16]} O-O {[%emt 0:00:57]} 7. Bd3 {[%emt 0:03:31]} c5 {[%emt 0:00:59]} 8. Nge2 {[%emt 0:00:49]} Nd7 {[%emt 0:05:20]} 9. Qd2 {[%emt 0:01:53]} e5 {[%emt 0:04:43]} 10. d5 {[%emt 0:05:08]} Nc7 {[%emt 0:07:49]} 11. g4 {[%emt 0:01:55]} a6 {[%emt 0:01:45]} 12. h4 {[%emt 0:03:26]} Rb8 {[%emt 0:02:37]} 13. h5 {[%emt 0:07:57]} b5 {[%emt 0:01:03]} 14. Bh6 {[%emt 0:02:26]} Qf6 {[%emt 0:00:58]} 15. Bg5 {[%emt 0:06:45]} Qxf3 {[%emt 0:01:56]} 16. O-O-O {[%emt 0:01:44]} f6 {[%emt 0:05:00]} 17. Be3 {[%emt 0:12:54]} g5 {[%emt 0:03:30]} 18. h6 {[%emt 0:01:51]} Bh8 {[%emt 0:00:10]} 19. Bxg5 {[%emt 0:02:06]} fxg5 {[%emt 0:01:24]} 20. Qxg5+ {[%emt 0:00:34]} Kf7 {[%emt 0:00:02]} 21. Rdf1 {[%emt 0:00:17]} Qxf1+ {[%emt 0:00:10]} 22. Rxf1+ {[%emt 0:00:01]} Bf6 {[%emt 0:00:20]} 23. Rxf6+ {[%emt 0:01:12]} Nxf6 {[%emt 0:00:12]} 24. Qg7+ {[%emt 0:00:05]} Ke8 {[%emt 0:00:29]} 25. Qxc7 {[%emt 0:00:08]} Nd7 {[%emt 0:00:11]} 26. cxb5 {[%emt 0:40:25]} 1-0

[Event "8th Montevideo Open 2025"]
[Site "Montevideo"]
[Date "2025.02.01"]
[Round "2.17"]
[White "Pizarro, Nick"]
[Black "Izquierdo, Daniel"]
[Result "1/2-1/2"]
[Annotator "NA RC"]
[ECO "B42"]
[WhiteElo "1594"]
[BlackElo "2069"]
[PlyCount "104"]
[EventDate "2025.02.01"]
[EventType "swiss"]
[EventCountry "URU"]
[SourceTitle "playchess.com"]
[Source "ChessBase"]
[SourceQuality "1"]
[TimeControl "5400+30"]

1. e4 {[%emt 0:03:38]} c5 {[%emt 0:23:06]} 2. Nf3 {[%emt 0:00:05]} e6 {[%emt 0:00:09]} 3. d4 {[%emt 0:00:01]} cxd4 {[%emt 0:00:07]} 4. Nxd4 {[%emt 0:00:01]} a6 {[%emt 0:00:01]} 5. Bd3 {[%emt 0:00:14]} Nc6 {[%emt 0:00:04]} 6. Nxc6 {[%emt 0:00:04]} bxc6 {[%emt 0:00:16]} 7. O-O {[%emt 0:00:12]} d6 {[%emt 0:01:11]} 8. Nd2 {[%emt 0:00:31]} Nf6 {[%emt 0:00:26]} 9. Re1 {[%emt 0:00:38]} e5 {[%emt 0:00:26]} 10. h3 {[%emt 0:13:37]} Be7 {[%emt 0:00:27]} 11. Nf3 {[%emt 0:00:44]} O-O {[%emt 0:00:46]} 12. Kh1 {[%emt 0:02:27]} Nd7 {[%emt 0:02:01]} 13. c3 {[%emt 0:04:28]} Bf6 {[%emt 0:02:42]} 14. Bc2 {[%emt 0:01:53]} Bb7 {[%emt 0:01:27]} 15. Qxd6 {[%emt 0:02:20]} Nb6 {[%emt 0:01:03]} 16. Qxd8 {[%emt 0:01:11]} Rfxd8 {[%emt 0:00:01]} 17. Bb3 {[%emt 0:05:28]} a5 {[%emt 0:01:18]} 18. Be3 {[%emt 0:02:53]} Nc8 {[%emt 0:01:39]} 19. Bg5 {[%emt 0:00:34]} a4 {[%emt 0:01:55]} 20. Bxf6 {[%emt 0:02:52]} gxf6 {[%emt 0:00:03]} 21. Bc2 {[%emt 0:00:20]} Nd6 {[%emt 0:01:10]} 22. Rad1 {[%emt 0:02:02]} Kf8 {[%emt 0:01:59]} 23. Nh4 {[%emt 0:03:51]} Bc8 {[%emt 0:01:12]} 24. Rd2 {[%emt 0:10:26]} Be6 {[%emt 0:03:52]} 25. Red1 {[%emt 0:00:58]} Ke7 {[%emt 0:00:47]} 26. Nf5+ {[%emt 0:00:24]} Bxf5 {[%emt 0:00:35]} 27. exf5 {[%emt 0:03:39]} a3 {[%emt 0:01:48]} 28. b3 {[%emt 0:01:33]} Nb5 {[%emt 0:00:51]} 29. Rxd8 {[%emt 0:12:54]} Rxd8 {[%emt 0:00:07]} 30. Rxd8 {[%emt 0:00:02]} Kxd8 {[%emt 0:00:00]} 31. b4 {[%emt 0:00:09]} Nxc3 {[%emt 0:03:34]} 32. Bb3 {[%emt 0:00:05]} Ke7 {[%emt 0:00:39]} 33. g4 {[%emt 0:01:10]} Kd6 {[%emt 0:01:25]} 34. Kg2 {[%emt 0:00:31]} Nd5 {[%emt 0:00:32]} 35. Kf3 {[%emt 0:00:46]} Nxb4 {[%emt 0:00:42]} 36. Ke4 {[%emt 0:01:08]} Nd5 {[%emt 0:00:37]} 37. h4 {[%emt 0:00:26]} h6 {[%emt 0:00:32]} 38. Kd3 {[%emt 0:10:29]} Kc5 {[%emt 0:01:48]} 39. f3 {[%emt 0:02:13]} Kb4 {[%emt 0:00:50]} 40. Kd2 {[%emt 0:01:13]} Nf4 {[%emt 0:02:47]} 41. Bxf7 {[%emt 0:01:02]} c5 {[%emt 0:00:53]} 42. g5 {[%emt 0:01:39]} fxg5 {[%emt 0:00:36]} 43. h5 {[%emt 0:00:48]} c4 {[%emt 0:01:57]} 44. f6 {[%emt 0:00:26]} c3+ {[%emt 0:00:23]} 45. Kc2 {[%emt 0:00:12]} Kc5 {[%emt 0:04:02]} 46. Kxc3 {[%emt 0:03:18]} Kd6 {[%emt 0:00:58]} 47. Kb3 {[%emt 0:01:51]} e4 {[%emt 0:00:31]} 48. fxe4 {[%emt 0:00:11]} g4 {[%emt 0:00:10]} 49. Bc4 {[%emt 0:00:58]} g3 {[%emt 0:00:15]} 50. Bf1 {[%emt 0:01:01]} Ke6 {[%emt 0:02:54]} 51. e5 {[%emt 0:00:38]} Kxe5 {[%emt 0:05:06]} 52. f7 {[%emt 0:00:30]} Ne6 {[%emt 0:33:50]} 1/2-1/2

[Event "8th Montevideo Open 2025"]
[Site "Montevideo"]
[Date "2025.02.01"]
[Round "2.18"]
[White "Meza, Anahi"]
[Black "Vigo, Luis"]
[Result "1-0"]
[Annotator "NA RC"]
[ECO "D10"]
[WhiteElo "2038"]
[BlackElo "1610"]
[PlyCount "81"]
[EventDate "2025.02.01"]
[EventType "swiss"]
[EventCountry "URU"]
[SourceTitle "playchess.com"]
[Source "ChessBase"]
[SourceQuality "1"]
[TimeControl "5400+30"]

1. d4 {[%emt 0:02:25]} d5 {[%emt 0:00:09]} 2. c4 {[%emt 0:00:16]} c6 {[%emt 0:00:13]} 3. cxd5 {[%emt 0:07:54]} cxd5 {[%emt 0:00:17]} 4. Nc3 {[%emt 0:00:16]} Bf5 {[%emt 0:03:11]} 5. Qb3 {[%emt 1:22:09]} Nc6 {[%emt 0:04:32]} 6. e3 {[%emt 0:00:00]} Qd7 {[%emt 0:06:22]} 7. Qxd5 {[%emt 0:00:00]} Qxd5 {[%emt 0:17:23]} 8. Nxd5 {[%emt 0:00:00]} O-O-O {[%emt 1:02:23]} 9. Nc3 {[%emt 0:00:00]} Nb4 {[%emt 0:00:00]} 10. e4 {[%emt 0:00:00]} Nc2+ {[%emt 0:00:00]} 11. Kd1 {[%emt 0:00:00]} Nxa1 {[%emt 0:00:00]} 12. exf5 {[%emt 0:00:00]} Rxd4+ {[%emt 0:00:00]} 13. Bd2 {[%emt 0:00:00]} g6 {[%emt 0:00:00]} 14. Nf3 {[%emt 0:00:00]} Rd8 {[%emt 0:00:00]} 15. Kc1 {[%emt 0:00:00]} Bg7 {[%emt 0:00:00]} 16. Bc4 {[%emt 0:00:00]} gxf5 {[%emt 0:00:00]} 17. Kb1 {[%emt 0:00:00]} e6 {[%emt 0:00:00]} 18. Kxa1 {[%emt 0:00:00]} Nf6 {[%emt 0:00:00]} 19. Bf4 {[%emt 0:00:00]} Ng4 {[%emt 0:00:00]} 20. Nb5 {[%emt 0:00:00]} Nxf2 {[%emt 0:00:00]} 21. Nxa7+ {[%emt 0:00:00]} Kd7 {[%emt 0:00:00]} 22. Rf1 {[%emt 0:00:00]} Ke7 {[%emt 0:00:00]} 23. Bg5+ {[%emt 0:00:00]} f6 {[%emt 0:00:00]} 24. Bd2 {[%emt 0:00:00]} Ne4 {[%emt 0:00:00]} 25. Bb4+ {[%emt 0:00:00]} Kf7 {[%emt 0:00:00]} 26. Nb5 {[%emt 0:00:00]} Bf8 {[%emt 0:00:00]} 27. Ba5 {[%emt 0:00:00]} Rc8 {[%emt 0:00:00]} 28. Nc7 {[%emt 0:00:00]} Nc5 {[%emt 0:00:00]} 29. b4 {[%emt 0:00:00]} Bd6 {[%emt 0:00:00]} 30. Nb5 {[%emt 0:00:00]} Ne4 {[%emt 0:00:00]} 31. Bb3 {[%emt 0:00:00]} Rc6 {[%emt 0:00:36]} 32. Nbd4 {[%emt 0:00:44]} Ra6 {[%emt 0:01:50]} 33. Bxe6+ {[%emt 0:00:54]} Ke8 {[%emt 0:10:04]} 34. Bc4 {[%emt 0:01:27]} Ra8 {[%emt 0:00:00]} 35. Nxf5 {[%emt 0:02:40]} Kf8 {[%emt 0:00:00]} 36. Bd5 {[%emt 0:00:46]} Nc3 {[%emt 0:00:00]} 37. Bxb7 {[%emt 0:00:27]} Rb8 {[%emt 0:00:00]} 38. Nxd6 {[%emt 0:00:23]} Ke7 {[%emt 0:00:00]} 39. Nf5+ {[%emt 0:00:13]} Kf7 {[%emt 0:00:06]} 40. Bc6 {[%emt 0:00:41]} Rhg8 {[%emt 0:03:24]} 41. Nh6+ 1-0

[Event "8th Montevideo Open 2025"]
[Site "Montevideo"]
[Date "2025.02.01"]
[Round "2.19"]
[White "Vazquez, Facundo"]
[Black "Onetto, Gaston"]
[Result "1-0"]
[Annotator "TA"]
[ECO "D00"]
[WhiteElo "2404"]
[BlackElo "1769"]
[PlyCount "87"]
[EventDate "2025.02.01"]
[EventType "swiss"]
[EventCountry "URU"]
[SourceTitle "playchess.com"]
[Source "ChessBase"]
[SourceQuality "1"]
[TimeControl "5400+30"]

{[%evp 9,87,5,13,4,16,3,91,82,135,139,144,97,104,85,68,44,42,54,44,9,71,33,37,39,37,33,34,33,37,7,19,16,16,0,0,-27,-51,-24,0,0,68,63,208,203,204,191,195,179,227,224,266,266,267,275,368,334,394,391,390,387,371,365,544,535,603,628,571,556,709,700,1296,1296,29983,29984,29984,29985,29985,29986,29986,29987]} 1. d4 {[%emt 0:09:54]} d5 {[%emt 0:00:43]} 2. Nc3 {[%emt 0:00:35]} Nf6 {[%emt 0:00:33]} 3. Bf4 {[%emt 0:00:09]} c6 {[%emt 0:01:15]} 4. e3 {[%emt 0:00:03]} Bf5 {[%emt 0:00:24]} 5. f3 {[%emt 0:00:18]} h6 {[%emt 0:01:09]} 6. g4 {[%emt 0:00:10]} Bh7 {[%emt 0:00:20]} 7. h4 {[%emt 0:01:03]} g5 {[%emt 0:04:32]} 8. Bg3 $16 {[%emt 0:01:43] White is better.} Bg7 {[%emt 0:00:21]} (8... gxh4 9. Bxh4 (9. Rxh4 Qb6 $11) 9... Qb6) 9. hxg5 {[%emt 0:01:15]} hxg5 {[%emt 0:00:58]} 10. Bd3 {[%emt 0:01:49]} (10. Qd2 $142) 10... Nbd7 {[%emt 0:00:30]} 11. Bxh7 {[%emt 0:00:39]} Rxh7 {[%emt 0:02:20]} 12. Rxh7 {[%emt 0:00:03]} Nxh7 {[%emt 0:00:10][%cal Bf6h7,Bh7f8,Bf8e6][%mdl 32]} 13. Qd3 {[%emt 0:00:06]} Nhf8 {[%emt 0:00:04]} 14. Nh3 {[%emt 0:01:42]} Bf6 {[%emt 0:03:23]} (14... e5 $11 {remains equal.}) 15. e4 {[%emt 0:00:50]} dxe4 {[%emt 0:04:49]} 16. Nxe4 {[%emt 0:00:38]} Qa5+ {[%emt 0:05:35]} 17. c3 {[%emt 0:01:35]} Ne6 {[%emt 0:00:17]} 18. a3 {[%emt 0:17:09]} O-O-O {[%emt 0:04:42]} 19. Kf1 {[%emt 0:00:21]} Ndc5 {[%emt 0:05:55]} 20. Nxc5 {[%emt 0:02:04]} (20. dxc5 $2 Rxd3 21. Kg2 Qb5 $19 (21... Nxc5 $2 22. b4 $19)) 20... Qxc5 {[%emt 0:01:12]} 21. Re1 {[%emt 0:01:11][%cal Ba1e1,Be1e2,Be2a2][%mdl 32]} Qd5 {[%emt 0:03:37]} 22. Kg2 {[%emt 0:05:54]} c5 {[%emt 0:02:29]} 23. b4 {[%emt 0:03:49]} Qa2+ {[%emt 0:03:46]} 24. Re2 {[%emt 0:00:26] Active counter play!} Qxa3 {[%emt 0:00:13]} (24... Qb3 $1 $11 25. Qc2 Qxa3) 25. Qc4 $14 {[%emt 0:02:11][%cal Oe2a2]} Qa6 {[%emt 0:16:42] This costs Black the game.} ({Black should try} 25... Qc1 $1 $14 26. d5 Nc7) 26. Qxa6 $1 $18 {[%emt 0:00:39]} bxa6 {[%emt 0:00:05]} 27. bxc5 {[%emt 0:00:09]} Kb7 {[%emt 0:00:24]} 28. Ra2 {[%emt 0:01:41]} Rd7 {[%emt 0:02:21]} (28... Bg7 $142 29. Nf2 Nf4+ 30. Bxf4 gxf4) 29. Nf2 {[%emt 0:00:42]} Bg7 {[%emt 0:01:16]} 30. Nd3 {[%emt 0:00:37]} Nd8 {[%emt 0:01:18]} 31. Nb4 {[%emt 0:00:16][%cal Od4d5]} Nc6 {[%emt 0:01:29]} 32. Nxc6 {[%emt 0:00:08]} (32. Rxa6 Nxb4 33. Ra3 Nc6 $19) (32. Nxa6 Rd8 33. Nc7 e5 $18) 32... Kxc6 {[%emt 0:00:06]} 33. Rxa6+ {[%emt 0:00:05][%mdl 4096] Endgame KRB-KRB. White is a pawn up.} Kd5 {[%emt 0:00:10]} 34. c6 {[%emt 0:00:11]} Rd8 {[%emt 0:00:16]} 35. Rxa7 {[%emt 0:02:12]} ({Don't take} 35. c7 Rc8 36. Ra5+ (36. Rxa7 Kc6 $18) 36... Kc6 37. Rc5+ (37. Rxg5 Bh8 $18) (37. Rxa7 e5 $18) 37... Kb6 38. Rxg5 Bh8 $18) 35... Rc8 {[%emt 0:05:52]} (35... Kxc6 {is a better defense.} 36. Rc7+ (36. Rxe7 Rd7 $18) 36... Kb5 37. Rxe7 Kc4 38. Rxf7 (38. Rc7+ Kd3 $18) 38... Bf8) 36. Rxe7 {[%emt 0:00:38]} Rxc6 {[%emt 0:00:17]} 37. Rxf7 {[%emt 0:00:02]} Bf6 {[%emt 0:00:27]} 38. Rc7 {[%emt 0:00:52]} Rc4 {[%emt 0:00:34] [#]} 39. Be5 $1 {[%emt 0:00:42] and Rxc4 should not be overlooked} Bxe5 {[%emt 0:01:00]} (39... Rxc7 40. Bxc7) 40. Rxc4 {[%emt 0:00:02]} Kxc4 {[%emt 0:00:12]} 41. dxe5 {[%emt 0:00:07] White mates.} Kd5 {[%emt 0:00:04] [#]} 42. f4 $1 {[%emt 0:00:26]} gxf4 {[%emt 0:00:15]} 43. Kf3 {[%emt 0:00:02]} Kxe5 {[%emt 0:00:09]} 44. c4 {[%emt 0:47:22] Weighted Error Value: White=0.07 (flawless) /Black=0.62  Mistake:       	White=1     	Black=7      Inaccurate:     	White=4     	Black=2      OK:         	White=15    	Black=9      Best:        	White=4     	Black=1      Strong:       	White=1     	---} 1-0